Workbook

Sheet 24年汇总
A1: 2024年农业高质量发展全面推进乡村产业振兴奖补兑现汇总表
A2: 序号 | B2: 扶持内容 | C2: 奖补主体数量（个） | D2: 主体申报金额 （万元） | E2: 需兑付金额（万元） | F2: 备 注
A3: 1 | B3: 加强特色农作物种质资源保护 | C3: 1 | D3: 238.10 | E3: 238.10 | F3: 对接上级项目资金
A4: 2 | B4: 促进稻米产业提质增效 | C4: 68 | D4: 68.00 | E4: 68.00 | F4: 对接上级项目资金
A5: 3 | B5: 推动黑塌菜产业做强做优 | C5: 1 | D5: 100.00 | E5: 100.00 | F5: 对接上级项目资金
A6: 4 | B6: 引导生猪产能快速提升 | C6: 4 | D6: 36.42 | E6: 36.42
A7: 5 | B7: 推进农产品品质保险试点 | C7: 5 | D7: 34.64 | E7: 34.64
A8: 6 | B8: 鼓励花木盆景转型升级 | C8: 15 | D8: 275.16 | E8: 272.92
A9: 7 | B9: 保持蚕桑产业稳定发展 | C9: 1 | D9: 30.09 | E9: 30.09 | F9: 列入财政特定目标项目预算
A10: 8 | B10: 提升绿色优质农产品发展水平 | C10: 25 | D10: 30.58 | E10: 30.58
A11: 9 | B11: 支持农业重大项目建设 | C11: 23 | D11: 51.00 | E11: 51.00
A12: 10 | B12: 培育壮大新型农业经营主体 | C12: 21 | D12: 55.15 | E12: 19.15
A13: 11 | B13: 支持电商发展 | C13: 13 | D13: 160.85 | E13: 123.49
A14: 12 | B14: 培育壮大品牌 | C14: 1 | D14: 319.78 | E14: 319.78
A15: 13 | B15: 强化宣传推介 | C15: 72 | D15: 24.15 | E15: 24.15
A16: 14 | B16: 支持农业全程机械化推进 | C16: 1 | D16: 17.64 | E16: 17.64 | F16: 对接上级项目资金
A17: 15 | B17: 支持数字农业建设 | C17: 5 | D17: 0.63 | E17: 0.63
A18: 16 | B18: 支持设施园艺项目建设 | C18: 3 | D18: 86.00 | E18: 86.00
A19: 17 | B19: 支持冷藏保鲜设施建设 | C19: 3 | D19: 175.22 | E19: 175.22
B20: 合计 | C20: =SUM(C3:C19) -> 262 | D20: =SUM(D3:D19) -> 1703.41 | E20: 1173.98
A21: 市领导意见： | D21: 部门审核意见：

Sheet 24年全市明细表
A1: 2024年农业高质量发展全面推进乡村产业振兴奖补明细表 | H1: 单位：万元
A2: 序号 | B2: 扶持 内容 | C2: 文件预算总额 | D2: 项目名称 | E2: 奖补主体 | F2: 申报奖补 金额 | G2: 核定奖补 金额 | H2: 责任 单位 | I2: 备注
A3: 一 | B3: 聚焦全产业链，建设标准化生产体系 | C3: 350 | D3: 加强特色农作物种质资源保护 | E3: 农科所 | F3: 238.1000 | G3: 238.1000 | H3: 农科所 | I3: 对接上级项目资金
D4: 单项小计 | F4: =SUM(F3:F3) -> 238.1000 | G4: =SUM(G3:G3) -> 238.1000
C5: 70 | D5: 水稻商品化集中育秧 | E5: 张志勇 | F5: 1.0000 | G5: 1.0000 | H5: 作栽站
E6: 如皋市同心家庭农场 | F6: 1.0000 | G6: 1.0000
E7: 如皋市恒孚稻米农地股份合作社 | F7: 1.0000 | G7: 1.0000
E8: 鞠昌军 | F8: 1.0000 | G8: 1.0000
E9: 丁鹏 | F9: 1.0000 | G9: 1.0000
E10: 张海峰 | F10: 1.0000 | G10: 1.0000
E11: 邓传兵 | F11: 1.0000 | G11: 1.0000
E12: 夏伟 | F12: 1.0000 | G12: 1.0000
E13: 周庆如 | F13: 1.0000 | G13: 1.0000
E14: 张怀庚 | F14: 1.0000 | G14: 1.0000
E15: 张怀兵 | F15: 1.0000 | G15: 1.0000
E16: 陆小琴 | F16: 1.0000 | G16: 1.0000
E17: 杨兴建 | F17: 1.0000 | G17: 1.0000
E18: 杨林 | F18: 1.0000 | G18: 1.0000
E19: 陈克强 | F19: 1.0000 | G19: 1.0000
E20: 高丽平 | F20: 1.0000 | G20: 1.0000
E21: 莫明春 | F21: 1.0000 | G21: 1.0000
E22: 何伟伟 | F22: 1.0000 | G22: 1.0000
E23: 周小兵 | F23: 1.0000 | G23: 1.0000
E24: 沈义庆 | F24: 1.0000 | G24: 1.0000
E25: 许波云 | F25: 1.0000 | G25: 1.0000
E26: 钱德明 | F26: 1.0000 | G26: 1.0000
E27: 王文荣 | F27: 1.0000 | G27: 1.0000
E28: 丁爱兵 | F28: 1.0000 | G28: 1.0000
E29: 马如军 | F29: 1.0000 | G29: 1.0000
E30: 陈美军 | F30: 1.0000 | G30: 1.0000
E31: 刘建荣 | F31: 1.0000 | G31: 1.0000
E32: 如皋市安亭家庭农场 | F32: 1.0000 | G32: 1.0000
E33: 纪春霞 | F33: 1.0000 | G33: 1.0000
E34: 如皋市土兴家庭农场 | F34: 1.0000 | G34: 1.0000
E35: 如皋市瑞云家庭农场 | F35: 1.0000 | G35: 1.0000
E36: 盛爱军 | F36: 1.0000 | G36: 1.0000
E37: 如皋市张氏家庭农场 | F37: 1.0000 | G37: 1.0000
E38: 如皋市仁发家庭农场 | F38: 1.0000 | G38: 1.0000
E39: 如皋市丁堰镇建锋家庭农场 | F39: 1.0000 | G39: 1.0000 | I39: 对接上级项目 资金
E40: 如皋市丁堰镇蒋氏家庭农场 | F40: 1.0000 | G40: 1.0000
E41: 如皋未来家庭农场 | F41: 1.0000 | G41: 1.0000
E42: 如皋市建鸿家庭农场 | F42: 1.0000 | G42: 1.0000
E43: 葛仁凤 | F43: 1.0000 | G43: 1.0000
E44: 如皋市传颖家庭农场 | F44: 1.0000 | G44: 1.0000
E45: 如皋市辰瑞家庭农场 | F45: 1.0000 | G45: 1.0000
E46: 如皋市周子月家庭农场 | F46: 1.0000 | G46: 1.0000
E47: 李秀芹 | F47: 1.0000 | G47: 1.0000
E48: 卢新海 | F48: 1.0000 | G48: 1.0000
E49: 石太兵 | F49: 1.0000 | G49: 1.0000
E50: 喻德旗 | F50: 1.0000 | G50: 1.0000
E51: 仲开泉 | F51: 1.0000 | G51: 1.0000
E52: 佘远建 | F52: 1.0000 | G52: 1.0000
E53: 李健 | F53: 1.0000 | G53: 1.0000
E54: 石健军 | F54: 1.0000 | G54: 1.0000
E55: 陈海斌 | F55: 1.0000 | G55: 1.0000
E56: 蔡尤美 | F56: 1.0000 | G56: 1.0000
E57: 孔随春 | F57: 1.0000 | G57: 1.0000
E58: 如皋市天宇家庭农场 | F58: 1.0000 | G58: 1.0000
E59: 徐志梅 | F59: 1.0000 | G59: 1.0000
E60: 左志刚 | F60: 1.0000 | G60: 1.0000
E61: 宋爱民 | F61: 1.0000 | G61: 1.0000
E62: 曹国建 | F62: 1.0000 | G62: 1.0000
E63: 杜锦成 | F63: 1.0000 | G63: 1.0000
E64: 孙学刚 | F64: 1.0000 | G64: 1.0000
E65: 如皋市杨淼家庭农场 | F65: 1.0000 | G65: 1.0000
E66: 谢云彬 | F66: 1.0000 | G66: 1.0000
E67: 王玉美 | F67: 1.0000 | G67: 1.0000
E68: 顾祖民 | F68: 1.0000 | G68: 1.0000
E69: 如皋市清雨家庭农场 | F69: 1.0000 | G69: 1.0000
E70: 如皋市载富家庭农场 | F70: 1.0000 | G70: 1.0000
E71: 石建凤 | F71: 1.0000 | G71: 1.0000
E72: 毛建华 | F72: 1.0000 | G72: 1.0000
D73: 单项小计 | F73: =SUM(F5:F72) -> 68.0000 | G73: =SUM(G5:G72) -> 68.0000
C74: 120 | D74: 推动黑塌菜产业做强做优 | E74: 搬经镇政府 | F74: 100.0000 | G74: 100.0000 | H74: 蔬菜办 | I74: 对接上级项目资金
D75: 单项小计 | F75: =SUM(F74:F74) -> 100.0000 | G75: =SUM(G74:G74) -> 100.0000
C76: 60 | D76: 引进种母猪 | E76: 南通炜博生态养殖有限公司 | F76: 6.9800 | G76: 6.9800 | H76: 畜牧兽医站
D77: 东串猪及东串猪杂交后代出栏奖补 | E77: 如皋市骏诚生态农业科技发展有限公司 | F77: 6.5000 | G77: 6.5000
E78: 如皋市张大生猪养殖场 | F78: 20.0000 | G78: 20.0000
E79: 如皋市欣成生猪养殖有限公司 | F79: 2.9400 | G79: 2.9400
D80: 单项小计 | F80: =SUM(F76:F79) -> 36.4200 | G80: =SUM(G76:G79) -> 36.4200
D81: 农产品品质保险 | E81: 张国华 | F81: 3.4700 | G81: 3.4700 | H81: 农险办 | I81: 高品质黑猪养殖
E82: 如皋市骏诚生态农业科技发展有限公司 | F82: 3.4700 | G82: 3.4700 | I82: 高品质黑猪养殖
E83: 南通市蒲韵农业发展有限公司 | F83: 16.0600 | G83: 16.0600 | I83: 高品质水稻种植
E84: 南通搬鲜生农业发展有限公司 | F84: 10.0400 | G84: 10.0400 | I84: 黑塌菜品质
E85: 如皋市综合检验检测中心 | F85: 1.6000 | G85: 1.6000 | H85: 蚕桑站 | I85: 如皋紫桃品质
D86: 单项小计 | F86: =SUM(F81:F85) -> 34.6400 | G86: =SUM(G81:G85) -> 34.6400
D87: 单项合计 | F87: =SUM(F86,F80,F75,F73,F4) -> 477.1600 | G87: =SUM(G86,G80) -> 71.0600
A88: 二 | B88: 加快提档升级，稳定区域化产业体系 | C88: 280 | D88: 花木盆景转型升级 | E88: 如皋浩森农业发展有限公司 | F88: 39.7500 | G88: 39.0000 | H88: 花木办
E89: 如皋市城南街道夏庄社区 | F89: 5.3094 | G89: 4.8150
E90: 高新区（如城街道）钱长村委会 | F90: 17.8000 | G90: 16.8000
E91: 如皋市梦景园林绿化工程有限公司 | F91: 4.8000 | G91: 4.8000
D92: 单项小计 | F92: =SUM(F88:F91) -> 67.6594 | G92: =SUM(G88:G91) -> 65.4150
D93: 盆景拔尖人才培养(根据年度考核排名) | E93: 朱登峰 | F93: 20.0000 | G93: 20.0000
E94: 李小军 | F94: 19.5000 | G94: 19.5000
E95: 沈勇 | F95: 19.0000 | G95: 19.0000
E96: 陈明华 | F96: 18.5000 | G96: 18.5000
E97: 郝昌桂 | F97: 18.0000 | G97: 18.0000
E98: 袁杨梦秋 | F98: 17.5000 | G98: 17.5000
E99: 平小贵 | F99: 17.0000 | G99: 17.0000
E100: 孙月飞 | F100: 16.5000 | G100: 16.5000
E101: 王建 | F101: 16.0000 | G101: 16.0000
E102: 张群慧 | F102: 15.5000 | G102: 15.5000
D103: 单项小计 | F103: =SUM(F93:F102) -> 177.5000 | G103: =SUM(G93:G102) -> 177.5000
D104: 盆景人才选拔、考核 | E104: 如皋市花木盆景产业联合会 | F104: 30.0000 | G104: 30.0000
D105: 单项小计 | F105: 30.0000 | G105: 30.0000
D106: 蚕桑产业 | E106: 蚕种风险储备基金、蚕种财政补贴、提升小蚕共育水平（财政直支，不占奖补预算） | F106: 30.0881 | G106: 30.0881 | H106: 蚕桑站 | I106: （不占奖补预算）
D107: 单项小计 | F107: 30.0881 | G107: 30.0881
D108: 提升绿色优质农产品发展水平 | E108: 如皋市益成鸽业有限公司 | F108: 3.0000 | G108: 3.0000 | H108: 质监科
E109: 如皋市洲源稻米专业合作社 | F109: 3.0000 | G109: 3.0000
E110: 如皋市紫藤家庭农场 | F110: 2.0000 | G110: 2.0000
E111: 中皋农产品供应链有限公司 | F111: 3.0000 | G111: 3.0000
E112: 如皋市秀彬家庭农场 | F112: 2.0000 | G112: 2.0000
E113: 南通春华食品有限公司 | F113: 1.0000 | G113: 1.0000
E114: 如皋市芳波家庭农场 | F114: 2.0000 | G114: 2.0000
E115: 如皋市众林家庭农场 | F115: 2.0000 | G115: 2.0000
E116: 如皋市丛埼家庭农场 | F116: 0.7000 | G116: 0.7000
E117: 如皋市硒皋家庭农场 | F117: 0.5800 | G117: 0.5800
E118: 如皋市丁堰镇轩宇家庭农场 | F118: 0.5800 | G118: 0.5800
E119: 如皋寿乡鲜生态农业发展有限公司 | F119: 0.8600 | G119: 0.8600
E120: 如皋市小溪家庭农场 | F120: 0.7800 | G120: 0.7800
E121: 如皋市细生家庭农场 | F121: 0.7000 | G121: 0.7000
E122: 南通市思香红农业有限公司 | F122: 0.5800 | G122: 0.5800
E123: 南通硒禾面业有限公司 | F123: 0.9000 | G123: 0.9000
E124: 中皋农产品供应链有限公司 | F124: 0.7000 | G124: 0.7000
E125: 南通伴西生态养殖有限公司 | F125: 1.0000 | G125: 1.0000
E126: 吴窑镇钱庄海隆达粮食种植农地股份专业合作社 | F126: 0.7000 | G126: 0.7000
E127: 如皋市领鲜家庭农场 | F127: 0.6000 | G127: 0.6000
E128: 如皋市茂源粮食种植农地股份合作社 | F128: 0.7000 | G128: 0.7000
E129: 如皋兆源米业有限公司 | F129: 1.0000 | G129: 1.0000
E130: 如皋市仁宗食品有限公司 | F130: 0.8000 | G130: 0.8000
E131: 如皋市旺杨种植农地股份合作社 | F131: 0.7000 | G131: 0.7000
E132: 如皋市一米乐家庭农场 | F132: 0.7000 | G132: 0.7000
D133: 单项小计 | F133: =SUM(F108:F132) -> 30.5800 | G133: =SUM(G108:G132) -> 30.5800
D134: 单项合计 | F134: =SUM(F133,F107,F105,F103,F92) -> 335.8275 | G134: =SUM(G133,G105,G103,G92) -> 303.4950
A135: 三 | B135: 强化履约能力，健全规模化经营体系 | D135: 新开工项目被省重大项目考核系统确认 | E135: 南通能成农业发展有限公司（能成食品生产项目） | F135: 1.0000 | G135: 1.0000 | H135: 项目办
E136: 南通益农生态养殖有限公司（益农生态养殖水蛭人工培植项目） | F136: 1.0000 | G136: 1.0000
E137: 平园池村民委员会（平园池村工厂化设施渔业育苗及高密度生态养殖基地项目） | F137: 1.0000 | G137: 1.0000
E138: 南通科兴牧业有限公司（科兴牧业肉鸡养殖扩建项目） | F138: 1.0000 | G138: 1.0000
E139: 南通市长来食品有限公司（搬经肉制品加工基地项目） | F139: 1.0000 | G139: 1.0000
E140: 如皋市乡野一顷家庭农场（乡野一顷果蔬基地项目） | F140: 1.0000 | G140: 1.0000
E141: 南通拓丰农业科技有限公司（拓丰健康蓝莓种植及果汁加工项目） | F141: 1.0000 | G141: 1.0000
E142: 如皋市金庄家庭农场（白蒲蔣殿粮食种植加工项目） | F142: 1.0000 | G142: 1.0000
E143: 斯慧生物科技（江苏）有限公司（动物疫苗研发项目） | F143: 1.0000 | G143: 1.0000
E144: 江苏省聚威蜗牛养殖科技有限公司（市蜗牛养殖加工及配套恒温恒湿棚房建设项目） | F144: 1.0000 | G144: 1.0000
E145: 日顿食品（南通）有限公司（日顿食品项目） | F145: 1.0000 | G145: 1.0000
E146: 如皋市珍丰家庭农场（珍丰粮食烘干项目） | F146: 1.0000 | G146: 1.0000
D147: 新开工项目被省重大项目考核系统确认，亿元项目，次年完成设备安装 | E147: 江苏康丰现代牧业有限公司（年产预制菜6000吨冷链物流项目） | F147: 5.0000 | G147: 5.0000
E148: 南京金陵人家食品有限公司南通分公司（金陵人家食品项目） | F148: 5.0000 | G148: 5.0000
E149: 江苏鼎厨食品有限公司（年产4000吨预制菜项目） | F149: 5.0000 | G149: 5.0000
D150: 新建一个3000万元（含）以上的新业态（高技术）项目 | E150: 中皋农产品供应链有限公司（中皋农产品供应链项目） | F150: 3.0000 | G150: 3.0000
E151: 如皋市松杨泳兴农民专业合作社（白蒲镇松杨泳兴粮油贸易项目） | F151: 3.0000 | G151: 3.0000
E152: 南通臻禾房地产开发有限公司（庆余农贸市场项目） | F152: 3.0000 | G152: 3.0000
E153: 如皋鑫双洋生物科技有限公司（中药酒包装车间项目） | F153: 3.0000 | G153: 3.0000
E154: 江苏大昌行食品有限公司（蒲西农产品加工项目） | F154: 3.0000 | G154: 3.0000
E155: 如皋市耕读生态休闲发展有限公司（耕读乡村生态园项目） | F155: 3.0000 | G155: 3.0000
E156: 南通粮食集团储备粮管理有限公司（粮食集团新建浅圆仓及配套设施项目） | F156: 3.0000 | G156: 3.0000
E157: 江苏茗晟建设工程有限公司（丽锦盆景展示中心项目） | F157: 3.0000 | G157: 3.0000
D158: 单项小计 | F158: =SUM(F135:F157) -> 51.0000 | G158: =SUM(G135:G157) -> 51.0000
D159: 首获南通级龙头企业 | E159: 南通星百味食品有限公司 | F159: 5.0000 | G159: 南通已补贴，不重复奖补。 | H159: 产业化科
E160: 南通红成生物科技有限公司 | F160: 5.0000
E161: 中皋农产品供应链有限公司 | F161: 5.0000
E162: 南通恒赢米业有限公司 | F162: 5.0000
E163: 如皋市桦儒肠衣有限公司 | F163: 5.0000
E164: 拓丰健康科技（南通）有限公司 | F164: 5.0000
D165: 南通级龙头企业复核 | E165: 江苏一品饲料科技发展有限公司 | F165: 1.0000 | G165: 1.0000
E166: 如皋市泽宇畜产品有限公司 | F166: 1.0000 | G166: 1.0000
E167: 江苏寿都密码供应链管理服务有限公司 | F167: 1.0000 | G167: 1.0000
E168: 江苏花心思盆景有限公司 | F168: 1.0000 | G168: 1.0000
D169: 首获如皋市级农业龙头企业 | E169: 南通星百味食品有限公司 | F169: 2.0000 | G169: 0.0000
E170: 南通海惠食品有限公司 | F170: 2.0000 | G170: 2.0000
E171: 南通粒粒寿米业有限公司 | F171: 2.0000 | G171: 2.0000
E172: 拓丰健康科技（南通）有限公司 | F172: 2.0000 | G172: 0.0000
E173: 南通市长来食品有限公司 | F173: 2.0000 | G173: 2.0000
E174: 江苏高旺高食品有限公司 | F174: 2.0000 | G174: 2.0000
E175: 江苏昭丰农业生态科技有限公司 | F175: 2.0000 | G175: 2.0000
D176: 如皋市级农业龙头企业复核 | E176: 如皋筷乐米业有限公司 | F176: 1.0000 | G176: 1.0000
E177: 中皋农产品供应链有限公司 | F177: 1.0000 | G177: 0.0000
E178: 如皋市绿野生态农业观光中心 | F178: 1.0000 | G178: 1.0000
E179: 南通恒赢米业有限公司 | F179: 1.0000 | G179: 0.0000
D180: 单项小计 | F180: =SUM(F159:F179) -> 52.0000 | G180: =SUM(G165:G179) -> 16.0000
D181: 家庭农场主保险 | E181: 如皋市丰瑞家庭农场 | F181: 0.5020 | G181: 0.5020 | H181: 园艺科
E182: 如皋市山水家庭农场 | F182: 0.5470 | G182: 0.5470
E183: 如皋市海平家庭农场 | F183: 0.5470 | G183: 0.5470
E184: 如皋市丰圣家庭农场 | F184: 0.5470 | G184: 0.5470
E185: 如皋市新元家庭农场 | F185: 0.5020 | G185: 0.5020
E186: 如皋市九华镇孙红娟家庭农场 | F186: 0.5020 | G186: 0.5020
D187: 单项小计 | F187: =SUM(F181:F186) -> 3.1471 | G187: =SUM(G181:G186) -> 3.1471
D188: 单项合计 | F188: =SUM(F187,F180,F158) -> 106.1471 | G188: =SUM(G187,G180,G158) -> 70.1471
A189: 四 | B189: 拓宽销售渠道，构建多元化 流通体系 | D189: 支持电商发展（农产品电子商务销售补助） | E189: 南通玉兔集团有限公司 | F189: 19.6000 | G189: 18.3437 | H189: 信息中心
E190: 江苏源味农业科技有限公司 | F190: 20.0000 | G190: 20.0000
E191: 如皋市苏荣电子商务有限公司 | F191: 18.1297 | G191: 4.3952
E192: 南通市谷溢新农业科技有限公司 | F192: 12.1701 | G192: 11.6005
E193: 南通道恒食品有限公司 | F193: 14.6335 | G193: 14.5559
E194: 江苏花名堂科技有限公司 | F194: 11.1483 | G194: 9.0623
E195: 江苏弘玖水产有限公司 | F195: 11.3560 | G195: 7.9163
E196: 倪吉（圆明园艺） | F196: 6.7520 | G196: 6.7520
E197: 马巧云（巧云花园） | F197: 6.4115 | G197: 6.4115
E198: 南通市长来食品有限公司 | F198: 7.3688 | G198: 7.3688
E199: 南通伴西生态养殖有限公司 | F199: 20.0000 | G199: 10.0064
E200: 江苏乔园景观建设工程有限公司 | F200: 7.1253 | G200: 2.6927
... 102 more rows
